[Event "Late-Titled-Tuesday-Blitz-May-14-2024"]
[Site "Chess.com"]
[Date "2024.05.14"]
[Round "1"]
[White "VirtualCoach"]
[Black "Russian_berezka"]
[Result "0-1"]
[WhiteElo "2210"]
[BlackElo "2588"]
[TimeControl "180+1"]
[EndTime "14:06:42 PDT"]
[Termination "Russian_berezka won by resignation"]

1. e4 {[%clk 0:02:54.9]} 1... g6 {[%clk 0:02:59.7]} 2. d4 {[%clk 0:02:54]} 2...
Bg7 {[%clk 0:03:00.1]} 3. Nc3 {[%clk 0:02:54.3]} 3... d5 {[%clk 0:02:59.2]} 4.
exd5 {[%clk 0:02:50.8]} 4... Nf6 {[%clk 0:02:58.8]} 5. Nf3 {[%clk 0:02:47.2]}
5... Nbd7 {[%clk 0:02:57.1]} 6. Be2 {[%clk 0:02:43.1]} 6... O-O {[%clk
0:02:56.3]} 7. O-O {[%clk 0:02:42.8]} 7... Nb6 {[%clk 0:02:56.4]} 8. Re1 {[%clk
0:02:39.9]} 8... Nbxd5 {[%clk 0:02:47.7]} 9. Nxd5 {[%clk 0:02:39.8]} 9... Nxd5
{[%clk 0:02:48.4]} 10. c4 {[%clk 0:02:39.5]} 10... Nf6 {[%clk 0:02:49]} 11. Bd2
{[%clk 0:02:38.4]} 11... Bg4 {[%clk 0:02:46.6]} 12. Bc3 {[%clk 0:02:37.2]} 12...
Ne4 {[%clk 0:02:45.4]} 13. Qc2 {[%clk 0:02:31.2]} 13... Nxc3 {[%clk 0:02:40.4]}
14. bxc3 {[%clk 0:02:26.9]} 14... Qd6 {[%clk 0:02:35.2]} 15. h3 {[%clk
0:02:25.9]} 15... Bxf3 {[%clk 0:02:34.3]} 16. Bxf3 {[%clk 0:02:24.3]} 16... c6
{[%clk 0:02:33.1]} 17. Rab1 {[%clk 0:02:21.3]} 17... Rab8 {[%clk 0:02:32.8]} 18.
Qa4 {[%clk 0:02:20]} 18... a6 {[%clk 0:02:30.5]} 19. Qc2 {[%clk 0:02:16.9]}
19... e6 {[%clk 0:02:29.1]} 20. Rb6 {[%clk 0:02:12.5]} 20... Qc7 {[%clk
0:02:22.2]} 21. Reb1 {[%clk 0:02:12.5]} 21... e5 {[%clk 0:02:21.8]} 22. d5
{[%clk 0:02:07]} 22... f5 {[%clk 0:02:18.3]} 23. Qb3 {[%clk 0:02:03.4]} 23... e4
{[%clk 0:02:11.1]} 24. Be2 {[%clk 0:02:02.5]} 24... cxd5 {[%clk 0:01:55]} 25.
cxd5 {[%clk 0:02:01.9]} 25... Qxc3 {[%clk 0:01:55.2]} 26. Bc4 {[%clk 0:01:54.8]}
26... Rfc8 {[%clk 0:01:49.3]} 27. Qxc3 {[%clk 0:01:52.4]} 27... Bxc3 {[%clk
0:01:50.2]} 28. Bxa6 {[%clk 0:01:52.2]} 28... Bd4 {[%clk 0:01:37.6]} 29. R6b4
{[%clk 0:01:37.9]} 29... Ba7 {[%clk 0:01:10.1]} 30. Bxb7 {[%clk 0:01:36.2]}
30... Rc2 {[%clk 0:01:08.8]} 31. d6 {[%clk 0:01:35.7]} 31... Bxf2+ {[%clk
0:01:04.2]} 32. Kh1 {[%clk 0:01:34.6]} 32... Kf8 {[%clk 0:00:59.4]} 33. a4
{[%clk 0:01:29.6]} 33... Bc5 {[%clk 0:00:58.1]} 34. Rb5 {[%clk 0:01:25.1]} 34...
Bxd6 {[%clk 0:00:58]} 35. a5 {[%clk 0:01:23.4]} 35... Ra2 {[%clk 0:00:51.8]} 36.
a6 {[%clk 0:01:23.3]} 36... e3 {[%clk 0:00:48.4]} 37. R5b2 {[%clk 0:01:20.1]}
37... Ra3 {[%clk 0:00:39]} 38. Rb3 {[%clk 0:01:18.4]} 38... Rxb3 {[%clk
0:00:37.1]} 39. Rxb3 {[%clk 0:01:17.7]} 39... e2 {[%clk 0:00:37.5]} 40. Re3
{[%clk 0:01:13.9]} 40... Re8 {[%clk 0:00:36.2]} 41. Rxe2 {[%clk 0:00:49.3]}
41... Rxe2 {[%clk 0:00:37.1]} 0-1

[Event "Late-Titled-Tuesday-Blitz-May-14-2024"]
[Site "Chess.com"]
[Date "2024.05.14"]
[Round "1"]
[White "Eliwood44"]
[Black "grzechu96"]
[Result "0-1"]
[WhiteElo "2445"]
[BlackElo "2803"]
[TimeControl "180+1"]
[EndTime "14:06:47 PDT"]
[Termination "grzechu96 won by checkmate"]

1. d4 {[%clk 0:02:59.4]} 1... d5 {[%clk 0:02:59.5]} 2. c4 {[%clk 0:02:56.8]}
2... e6 {[%clk 0:02:58.2]} 3. Nf3 {[%clk 0:02:56.6]} 3... c6 {[%clk 0:02:53.3]}
4. e3 {[%clk 0:02:48.5]} 4... Nf6 {[%clk 0:02:51.6]} 5. Nc3 {[%clk 0:02:42.3]}
5... Nbd7 {[%clk 0:02:50.5]} 6. Qc2 {[%clk 0:02:40.8]} 6... Bd6 {[%clk
0:02:50.3]} 7. b3 {[%clk 0:02:38.1]} 7... O-O {[%clk 0:02:49.5]} 8. Be2 {[%clk
0:02:38.6]} 8... b6 {[%clk 0:02:49]} 9. O-O {[%clk 0:02:35.5]} 9... Bb7 {[%clk
0:02:49.5]} 10. Bb2 {[%clk 0:02:35.9]} 10... Qe7 {[%clk 0:02:49.3]} 11. Bd3
{[%clk 0:02:35.1]} 11... e5 {[%clk 0:02:38.6]} 12. cxd5 {[%clk 0:02:13]} 12...
cxd5 {[%clk 0:02:38.1]} 13. dxe5 {[%clk 0:02:13.4]} 13... Nxe5 {[%clk 0:02:39]}
14. Nxe5 {[%clk 0:02:04.5]} 14... Qxe5 {[%clk 0:02:38.9]} 15. g3 {[%clk
0:02:04.8]} 15... Qh5 {[%clk 0:02:34.4]} 16. Be2 {[%clk 0:01:59.2]} 16... Qh3
{[%clk 0:02:32.9]} 17. Nb5 {[%clk 0:01:47.4]} 17... d4 {[%clk 0:02:05.7]} 18. f3
{[%clk 0:01:39]} 18... Ng4 {[%clk 0:01:47.6]} 19. Bd3 {[%clk 0:01:10.3]} 19...
Nxe3 {[%clk 0:01:44.6]} 20. Qf2 {[%clk 0:01:04.4]} 20... Be5 {[%clk 0:00:56.1]}
21. Rfe1 {[%clk 0:00:51.3]} 21... Rad8 {[%clk 0:00:23.6]} 22. Bxd4 {[%clk
0:00:49.3]} 22... Rxd4 {[%clk 0:00:17.8]} 23. Nxd4 {[%clk 0:00:22.8]} 23... Bxd4
{[%clk 0:00:18.7]} 24. Bf1 {[%clk 0:00:22.9]} 24... Nxf1 {[%clk 0:00:11.8]} 25.
Qxd4 {[%clk 0:00:23.1]} 25... Nxh2 {[%clk 0:00:08.8]} 26. Re3 {[%clk 0:00:19.6]}
26... Qxg3+ {[%clk 0:00:08]} 27. Kh1 {[%clk 0:00:19]} 27... Nxf3 {[%clk
0:00:07.8]} 28. Qd7 {[%clk 0:00:15.9]} 28... Qh2# {[%clk 0:00:07.8]} 0-1

[Event "Late-Titled-Tuesday-Blitz-May-14-2024"]
[Site "Chess.com"]
[Date "2024.05.14"]
[Round "1"]
[White "Oleg_Papayan"]
[Black "Supergiuly"]
[Result "0-1"]
[WhiteElo "2627"]
[BlackElo "2346"]
[TimeControl "180+1"]
[EndTime "14:06:48 PDT"]
[Termination "Supergiuly won by resignation"]

1. e4 {[%clk 0:03:00.9]} 1... b6 {[%clk 0:02:44.3]} 2. d4 {[%clk 0:02:59.1]}
2... Bb7 {[%clk 0:02:25.6]} 3. Nc3 {[%clk 0:02:57.1]} 3... g6 {[%clk 0:02:24.9]}
4. Be3 {[%clk 0:02:53.7]} 4... Bg7 {[%clk 0:02:24.9]} 5. Qd2 {[%clk 0:02:54.1]}
5... e6 {[%clk 0:02:23.3]} 6. h4 {[%clk 0:02:53.9]} 6... h5 {[%clk 0:02:22.6]}
7. O-O-O {[%clk 0:02:46.1]} 7... Nf6 {[%clk 0:02:21.7]} 8. f3 {[%clk 0:02:45.5]}
8... Qe7 {[%clk 0:02:18.8]} 9. Nh3 {[%clk 0:02:44.4]} 9... Nc6 {[%clk
0:02:14.6]} 10. Bc4 {[%clk 0:02:33.7]} 10... O-O-O {[%clk 0:02:13.9]} 11. Rhe1
{[%clk 0:02:31.4]} 11... Qb4 {[%clk 0:02:11.9]} 12. Bb3 {[%clk 0:02:28.5]} 12...
Na5 {[%clk 0:02:09.6]} 13. Ng5 {[%clk 0:02:27.2]} 13... Nxb3+ {[%clk 0:02:07.5]}
14. cxb3 {[%clk 0:02:24.6]} 14... Rhf8 {[%clk 0:02:06.9]} 15. Kb1 {[%clk
0:02:24.5]} 15... d5 {[%clk 0:02:04.4]} 16. e5 {[%clk 0:02:21.2]} 16... Nd7
{[%clk 0:02:04]} 17. Rc1 {[%clk 0:02:03]} 17... c5 {[%clk 0:02:01.9]} 18. f4
{[%clk 0:01:18.8]} 18... Kb8 {[%clk 0:01:58.1]} 19. g3 {[%clk 0:01:12.8]} 19...
Bh6 {[%clk 0:01:33.8]} 20. Red1 {[%clk 0:01:10]} 20... Bxg5 {[%clk 0:01:32.4]}
21. fxg5 {[%clk 0:01:02.1]} 21... Rc8 {[%clk 0:01:27.7]} 22. Rf1 {[%clk
0:01:00.4]} 22... Ba6 {[%clk 0:01:20.7]} 23. Rf4 {[%clk 0:01:00]} 23... cxd4
{[%clk 0:01:18.6]} 24. Qxd4 {[%clk 0:00:51.5]} 24... Qxd4 {[%clk 0:01:16.4]} 25.
Bxd4 {[%clk 0:00:52.4]} 25... Nc5 {[%clk 0:01:15.5]} 26. Bxc5 {[%clk 0:00:46.9]}
26... Rxc5 {[%clk 0:01:12.7]} 27. b4 {[%clk 0:00:41.8]} 27... Rc4 {[%clk
0:01:07.9]} 28. b3 {[%clk 0:00:32.1]} 28... Rxf4 {[%clk 0:01:04]} 29. gxf4
{[%clk 0:00:33]} 29... d4 {[%clk 0:01:02.6]} 30. Na4 {[%clk 0:00:29.9]} 30... d3
{[%clk 0:00:59]} 31. Nc3 {[%clk 0:00:22.3]} 31... Rd8 {[%clk 0:00:56.1]} 32. b5
{[%clk 0:00:22.6]} 32... Bb7 {[%clk 0:00:54.2]} 33. Rd1 {[%clk 0:00:20.8]} 33...
Rd4 {[%clk 0:00:48.6]} 34. Rf1 {[%clk 0:00:20]} 34... d2 {[%clk 0:00:41.1]} 35.
Kc2 {[%clk 0:00:20]} 35... Kc7 {[%clk 0:00:33.5]} 36. Rf2 {[%clk 0:00:20.4]}
36... Be4+ {[%clk 0:00:30.6]} 37. Nxe4 {[%clk 0:00:20.3]} 37... d1=Q+ {[%clk
0:00:30.5]} 38. Kb2 {[%clk 0:00:19.8]} 38... Rxe4 {[%clk 0:00:28.7]} 0-1

[Event "Late-Titled-Tuesday-Blitz-May-14-2024"]
[Site "Chess.com"]
[Date "2024.05.14"]
[Round "1"]
[White "MarceloPlaya"]
[Black "Casablanca"]
[Result "0-1"]
[WhiteElo "2335"]
[BlackElo "2655"]
[TimeControl "180+1"]
[EndTime "14:06:49 PDT"]
[Termination "Casablanca won on time"]

1. e4 {[%clk 0:03:00.1]} 1... b6 {[%clk 0:03:00.9]} 2. d4 {[%clk 0:02:58.2]}
2... Bb7 {[%clk 0:03:01.4]} 3. Nc3 {[%clk 0:02:56.8]} 3... e6 {[%clk 0:03:01.3]}
4. Be3 {[%clk 0:02:55.7]} 4... Bb4 {[%clk 0:03:01.3]} 5. f3 {[%clk 0:02:54.6]}
5... d5 {[%clk 0:02:58.9]} 6. e5 {[%clk 0:02:52.3]} 6... c5 {[%clk 0:02:56.7]}
7. a3 {[%clk 0:02:49.9]} 7... Bxc3+ {[%clk 0:02:55.7]} 8. bxc3 {[%clk 0:02:49]}
8... Ne7 {[%clk 0:02:55.6]} 9. Ne2 {[%clk 0:02:44.4]} 9... Qc7 {[%clk
0:02:51.7]} 10. Qd2 {[%clk 0:02:39.4]} 10... Ba6 {[%clk 0:02:46.4]} 11. Kf2
{[%clk 0:02:33.4]} 11... cxd4 {[%clk 0:02:46.1]} 12. cxd4 {[%clk 0:02:30.4]}
12... Nbc6 {[%clk 0:02:46.2]} 13. Ng3 {[%clk 0:02:16.3]} 13... Bxf1 {[%clk
0:02:45]} 14. Rhxf1 {[%clk 0:02:14.3]} 14... Na5 {[%clk 0:02:43.2]} 15. Bg5
{[%clk 0:02:06.9]} 15... Nc4 {[%clk 0:02:39.5]} 16. Qf4 {[%clk 0:01:59.8]} 16...
Ng6 {[%clk 0:02:39.4]} 17. Qc1 {[%clk 0:01:46.7]} 17... h6 {[%clk 0:02:37.5]}
18. Bf4 {[%clk 0:01:40.3]} 18... h5 {[%clk 0:02:35]} 19. Kg1 {[%clk 0:01:33.2]}
19... h4 {[%clk 0:02:22.1]} 20. Ne2 {[%clk 0:01:31.6]} 20... Rc8 {[%clk
0:02:23]} 21. Ra2 {[%clk 0:01:29.7]} 21... Ne7 {[%clk 0:02:13.6]} 22. c3 {[%clk
0:01:20.7]} 22... Nf5 {[%clk 0:02:12.6]} 23. g4 {[%clk 0:01:12.4]} 23... hxg3
{[%clk 0:02:12.4]} 24. hxg3 {[%clk 0:01:11.4]} 24... Qc6 {[%clk 0:02:00.4]} 25.
Kg2 {[%clk 0:01:09.5]} 25... Qa4 {[%clk 0:01:56.9]} 26. Rh1 {[%clk 0:01:03.1]}
26... Kd7 {[%clk 0:01:55.6]} 27. Rxh8 {[%clk 0:00:59.2]} 27... Rxh8 {[%clk
0:01:55.2]} 28. g4 {[%clk 0:00:42.4]} 28... Qb3 {[%clk 0:01:47.7]} 29. Ra1
{[%clk 0:00:38.3]} 29... Nh4+ {[%clk 0:01:43.3]} 30. Kg3 {[%clk 0:00:37.7]}
30... Ng6 {[%clk 0:01:37.9]} 31. Bd2 {[%clk 0:00:22]} 31... Ne7 {[%clk
0:01:21.3]} 32. Bg5 {[%clk 0:00:14.6]} 32... Nc6 {[%clk 0:01:17]} 33. Qf4 {[%clk
0:00:13.3]} 33... Ke8 {[%clk 0:01:14.3]} 34. Bh4 {[%clk 0:00:10.4]} 34... Qc2
{[%clk 0:01:12.2]} 35. Re1 {[%clk 0:00:07.9]} 35... Qd2 {[%clk 0:00:41.8]} 36.
Qxd2 {[%clk 0:00:03.1]} 36... Nxd2 {[%clk 0:00:42.7]} 37. a4 {[%clk 0:00:01.9]}
37... Nc4 {[%clk 0:00:43.6]} 0-1

[Event "Late-Titled-Tuesday-Blitz-May-14-2024"]
[Site "Chess.com"]
[Date "2024.05.14"]
[Round "1"]
[White "maximnovik"]
[Black "protectiago"]
[Result "1-0"]
[WhiteElo "2566"]
[BlackElo "2069"]
[TimeControl "180+1"]
[EndTime "14:06:51 PDT"]
[Termination "maximnovik won on time"]

1. e4 {[%clk 0:03:00]} 1... e5 {[%clk 0:02:54]} 2. Nf3 {[%clk 0:03:00]} 2... Nc6
{[%clk 0:02:48.7]} 3. Bc4 {[%clk 0:03:00.3]} 3... Bc5 {[%clk 0:02:43]} 4. d3
{[%clk 0:02:59.3]} 4... d6 {[%clk 0:02:39]} 5. h3 {[%clk 0:02:57.4]} 5... Nf6
{[%clk 0:02:35.7]} 6. a3 {[%clk 0:02:53.9]} 6... a6 {[%clk 0:02:33.6]} 7. Nc3
{[%clk 0:02:53.7]} 7... h6 {[%clk 0:02:19.3]} 8. Be3 {[%clk 0:02:52.8]} 8...
Bxe3 {[%clk 0:02:14.1]} 9. fxe3 {[%clk 0:02:52.7]} 9... O-O {[%clk 0:02:10.3]}
10. g4 {[%clk 0:02:46]} 10... b5 {[%clk 0:02:10.1]} 11. Bb3 {[%clk 0:02:40.6]}
11... Be6 {[%clk 0:01:51.6]} 12. Nd5 {[%clk 0:02:37.7]} 12... Bxd5 {[%clk
0:01:48]} 13. Bxd5 {[%clk 0:02:36.7]} 13... Nxd5 {[%clk 0:01:47.1]} 14. exd5
{[%clk 0:02:36.9]} 14... Ne7 {[%clk 0:01:46.9]} 15. e4 {[%clk 0:02:37.3]} 15...
c6 {[%clk 0:01:36.5]} 16. dxc6 {[%clk 0:02:32.8]} 16... Nxc6 {[%clk 0:01:29.4]}
17. O-O {[%clk 0:02:32.2]} 17... d5 {[%clk 0:01:28.2]} 18. Qe2 {[%clk
0:02:29.4]} 18... Qb6+ {[%clk 0:01:20.2]} 19. Kg2 {[%clk 0:02:29.1]} 19... Nd4
{[%clk 0:00:49.7]} 20. Nxd4 {[%clk 0:02:20]} 20... exd4 {[%clk 0:00:49.7]} 21.
e5 {[%clk 0:01:53.1]} 21... Rac8 {[%clk 0:00:43.7]} 22. Rae1 {[%clk 0:01:50.2]}
22... Qc5 {[%clk 0:00:41.9]} 23. Rf2 {[%clk 0:01:50.1]} 23... a5 {[%clk
0:00:41.7]} 24. Qf3 {[%clk 0:01:46.7]} 24... Rc6 {[%clk 0:00:38.1]} 25. h4
{[%clk 0:01:42.8]} 25... b4 {[%clk 0:00:38.1]} 26. axb4 {[%clk 0:01:41.9]} 26...
Qxb4 {[%clk 0:00:30.9]} 27. Qxd5 {[%clk 0:01:39.1]} 27... Rg6 {[%clk 0:00:30.1]}
28. Re4 {[%clk 0:01:34.1]} 28... Qxb2 {[%clk 0:00:27.5]} 29. Qxd4 {[%clk
0:01:34.2]} 29... Qb7 {[%clk 0:00:24.1]} 30. Kg3 {[%clk 0:01:31.2]} 30... h5
{[%clk 0:00:16.8]} 31. g5 {[%clk 0:01:31.1]} 31... Re6 {[%clk 0:00:12.2]} 32.
Ref4 {[%clk 0:01:29.1]} 32... g6 {[%clk 0:00:11.2]} 33. Qe4 {[%clk 0:01:27.4]}
33... Qc8 {[%clk 0:00:11]} 34. d4 {[%clk 0:01:24.4]} 34... Qd7 {[%clk
0:00:09.6]} 35. d5 {[%clk 0:01:23.7]} 35... Ree8 {[%clk 0:00:09.6]} 36. e6
{[%clk 0:01:22.9]} 36... fxe6 {[%clk 0:00:09.8]} 37. Qxg6+ {[%clk 0:01:22.8]}
37... Qg7 {[%clk 0:00:09.8]} 38. Rxf8+ {[%clk 0:01:22.3]} 38... Rxf8 {[%clk
0:00:10]} 39. Qxe6+ {[%clk 0:01:21.9]} 39... Kh7 {[%clk 0:00:08.7]} 40. Rxf8
{[%clk 0:01:20.8]} 40... Qxf8 {[%clk 0:00:08.8]} 41. d6 {[%clk 0:01:17.5]} 41...
Qf1 {[%clk 0:00:04.8]} 42. Qe7+ {[%clk 0:01:16.2]} 42... Kg6 {[%clk 0:00:04.4]}
43. Qe8+ {[%clk 0:01:15.1]} 43... Kg7 {[%clk 0:00:04]} 44. Qe5+ {[%clk
0:01:14.6]} 44... Kg6 {[%clk 0:00:03.7]} 45. Qe4+ {[%clk 0:01:12.4]} 45... Kg7
{[%clk 0:00:03.7]} 46. Qd4+ {[%clk 0:01:12.5]} 46... Kg8 {[%clk 0:00:02.7]} 47.
d7 {[%clk 0:01:12.2]} 47... Qe1+ {[%clk 0:00:00.5]} 48. Kf4 {[%clk 0:01:12.1]}
1-0

[Event "Late-Titled-Tuesday-Blitz-May-14-2024"]
[Site "Chess.com"]
[Date "2024.05.14"]
[Round "1"]
[White "yaguigor"]
[Black "OIAM03"]
[Result "1-0"]
[WhiteElo "2558"]
[BlackElo "1948"]
[TimeControl "180+1"]
[EndTime "14:06:51 PDT"]
[Termination "yaguigor won by resignation"]

1. d4 {[%clk 0:02:55.5]} 1... Nf6 {[%clk 0:02:59.1]} 2. c4 {[%clk 0:02:55]} 2...
g6 {[%clk 0:02:58.8]} 3. Nc3 {[%clk 0:02:54.2]} 3... d5 {[%clk 0:02:59]} 4. Nf3
{[%clk 0:02:52.5]} 4... Bg7 {[%clk 0:02:58.8]} 5. cxd5 {[%clk 0:02:51.4]} 5...
Nxd5 {[%clk 0:02:59.2]} 6. e4 {[%clk 0:02:49.9]} 6... Nxc3 {[%clk 0:02:59.8]} 7.
bxc3 {[%clk 0:02:49.8]} 7... O-O {[%clk 0:03:00.4]} 8. Be3 {[%clk 0:02:37.9]}
8... c5 {[%clk 0:03:00]} 9. Rc1 {[%clk 0:02:36.2]} 9... Qa5 {[%clk 0:02:59]} 10.
Qd2 {[%clk 0:02:33.1]} 10... cxd4 {[%clk 0:02:42.8]} 11. cxd4 {[%clk 0:02:34]}
11... Nc6 {[%clk 0:02:43.1]} 12. Qxa5 {[%clk 0:02:10.5]} 12... Nxa5 {[%clk
0:02:43]} 13. Rc7 {[%clk 0:02:10.7]} 13... e6 {[%clk 0:02:14.6]} 14. Bd3 {[%clk
0:02:02]} 14... Nc6 {[%clk 0:02:13.8]} 15. Bb5 {[%clk 0:01:43.2]} 15... Rd8
{[%clk 0:01:21.6]} 16. Bxc6 {[%clk 0:01:40.1]} 16... bxc6 {[%clk 0:01:21.7]} 17.
O-O {[%clk 0:01:39]} 17... Ba6 {[%clk 0:01:20.6]} 18. Rc1 {[%clk 0:01:35.3]}
18... Bd3 {[%clk 0:01:16.4]} 19. e5 {[%clk 0:01:03.7]} 19... Be4 {[%clk
0:01:16]} 20. Nd2 {[%clk 0:00:57.7]} 20... Bd5 {[%clk 0:01:16.2]} 21. a4 {[%clk
0:00:50.5]} 21... Bf8 {[%clk 0:01:11]} 22. Rb1 {[%clk 0:00:48]} 22... Rdb8
{[%clk 0:00:57.7]} 23. Rxb8 {[%clk 0:00:45.4]} 23... Rxb8 {[%clk 0:00:58.3]} 24.
Rxa7 {[%clk 0:00:44.2]} 24... Bb4 {[%clk 0:00:57.8]} 25. h4 {[%clk 0:00:39.1]}
25... Bxd2 {[%clk 0:00:53.8]} 26. Bxd2 {[%clk 0:00:38.4]} 26... Rb1+ {[%clk
0:00:54.1]} 27. Kh2 {[%clk 0:00:37.8]} 27... Rb2 {[%clk 0:00:39.5]} 28. Be3
{[%clk 0:00:30.2]} 28... Ra2 {[%clk 0:00:39.2]} 29. a5 {[%clk 0:00:28.8]} 29...
Kg7 {[%clk 0:00:37.1]} 30. Kg3 {[%clk 0:00:27.3]} 30... h5 {[%clk 0:00:33]} 31.
Bg5 {[%clk 0:00:25.9]} 31... Ra3+ {[%clk 0:00:30.9]} 32. f3 {[%clk 0:00:25.7]}
32... Ra4 {[%clk 0:00:29.1]} 33. Bf6+ {[%clk 0:00:25.2]} 1-0

[Event "Late-Titled-Tuesday-Blitz-May-14-2024"]
[Site "Chess.com"]
[Date "2024.05.14"]
[Round "1"]
[White "DreamsAreFake"]
[Black "bobo_panda"]
[Result "1-0"]
[WhiteElo "2759"]
[BlackElo "2430"]
[TimeControl "180+1"]
[EndTime "14:06:52 PDT"]
[Termination "DreamsAreFake won by checkmate"]

1. Nf3 {[%clk 0:02:59.4]} 1... Nf6 {[%clk 0:02:59.6]} 2. g3 {[%clk 0:02:59.8]}
2... d5 {[%clk 0:02:59.1]} 3. Bg2 {[%clk 0:02:59.9]} 3... Bf5 {[%clk 0:02:59.7]}
4. O-O {[%clk 0:03:00.2]} 4... e6 {[%clk 0:03:00.2]} 5. d3 {[%clk 0:03:00.9]}
5... Nbd7 {[%clk 0:03:00.1]} 6. c4 {[%clk 0:03:01.2]} 6... c6 {[%clk 0:02:59.7]}
7. cxd5 {[%clk 0:03:01.6]} 7... cxd5 {[%clk 0:02:58.9]} 8. Nc3 {[%clk
0:03:00.8]} 8... h6 {[%clk 0:02:58.5]} 9. Nd4 {[%clk 0:02:49.3]} 9... Bh7 {[%clk
0:02:57.3]} 10. e4 {[%clk 0:02:49.5]} 10... e5 {[%clk 0:02:53.6]} 11. Nf5 {[%clk
0:02:43.4]} 11... d4 {[%clk 0:02:49]} 12. Ne2 {[%clk 0:02:34.4]} 12... Bxf5
{[%clk 0:02:35.7]} 13. exf5 {[%clk 0:02:34.5]} 13... Nb6 {[%clk 0:02:36.6]} 14.
Bxb7 {[%clk 0:02:19.8]} 14... Rb8 {[%clk 0:02:36.1]} 15. Bc6+ {[%clk 0:02:17.2]}
15... Nfd7 {[%clk 0:02:36.5]} 16. f4 {[%clk 0:02:14.7]} 16... Bd6 {[%clk
0:02:34.8]} 17. fxe5 {[%clk 0:02:08.4]} 17... Bxe5 {[%clk 0:02:35.7]} 18. Bf4
{[%clk 0:02:06.6]} 18... O-O {[%clk 0:02:25.4]} 19. Qd2 {[%clk 0:02:06.7]} 19...
Qf6 {[%clk 0:02:16.9]} 20. Rac1 {[%clk 0:01:58.4]} 20... Bxf4 {[%clk 0:02:08.7]}
21. Qxf4 {[%clk 0:01:56.7]} 21... Ne5 {[%clk 0:02:08.5]} 22. Be4 {[%clk
0:01:55.6]} 22... Na4 {[%clk 0:01:57.5]} 23. b3 {[%clk 0:01:55.6]} 23... Nc3
{[%clk 0:01:57.2]} 24. Nxc3 {[%clk 0:01:31.8]} 24... dxc3 {[%clk 0:01:58.1]} 25.
d4 {[%clk 0:01:28.7]} 25... Nd7 {[%clk 0:01:50]} 26. Rxc3 {[%clk 0:01:26.1]}
26... Qxd4+ {[%clk 0:01:49.3]} 27. Qe3 {[%clk 0:01:26.2]} 27... Qxe3+ {[%clk
0:01:42.4]} 28. Rxe3 {[%clk 0:01:27.1]} 28... Rbc8 {[%clk 0:01:42.9]} 29. Bb1
{[%clk 0:01:15.3]} 29... Rfd8 {[%clk 0:01:35.5]} 30. Rd3 {[%clk 0:01:07.5]}
30... Ne5 {[%clk 0:01:30.2]} 31. Rxd8+ {[%clk 0:01:07.3]} 31... Rxd8 {[%clk
0:01:31.1]} 32. f6 {[%clk 0:01:03.2]} 32... gxf6 {[%clk 0:01:27.7]} 33. Rxf6
{[%clk 0:00:56.8]} 33... Rd1+ {[%clk 0:01:26.1]} 34. Rf1 {[%clk 0:00:57.4]}
34... Nf3+ {[%clk 0:01:26.4]} 35. Kf2 {[%clk 0:00:56.4]} 35... Rxf1+ {[%clk
0:01:27.3]} 36. Kxf1 {[%clk 0:00:56.9]} 36... Nd2+ {[%clk 0:01:28.2]} 37. Ke2
{[%clk 0:00:53.6]} 37... Nxb1 {[%clk 0:01:29.1]} 38. a4 {[%clk 0:00:43.4]} 38...
Kf8 {[%clk 0:01:27.3]} 39. Kd3 {[%clk 0:00:43.4]} 39... Ke7 {[%clk 0:01:27.5]}
40. Kc2 {[%clk 0:00:43.7]} 40... Na3+ {[%clk 0:01:21.2]} 41. Kb2 {[%clk
0:00:43.1]} 41... Nb5 {[%clk 0:01:21.7]} 42. axb5 {[%clk 0:00:42.9]} 42... Kd6
{[%clk 0:01:22.1]} 43. Ka3 {[%clk 0:00:39.6]} 43... Kc5 {[%clk 0:01:21.1]} 44.
Ka4 {[%clk 0:00:40.3]} 44... Kb6 {[%clk 0:01:18.1]} 45. Kb4 {[%clk 0:00:40.9]}
45... h5 {[%clk 0:01:04.8]} 46. h3 {[%clk 0:00:39.5]} 46... f6 {[%clk
0:01:03.4]} 47. h4 {[%clk 0:00:39]} 47... f5 {[%clk 0:01:01.5]} 48. Kc4 {[%clk
0:00:36]} 48... Ka5 {[%clk 0:01:01.5]} 49. Kc5 {[%clk 0:00:34.4]} 49... a6
{[%clk 0:01:01.6]} 50. bxa6 {[%clk 0:00:34.7]} 50... Kxa6 {[%clk 0:01:00.6]} 51.
Kd5 {[%clk 0:00:35.2]} 51... Kb5 {[%clk 0:01:00.7]} 52. Ke5 {[%clk 0:00:35.9]}
52... Kb4 {[%clk 0:01:01.6]} 53. Kxf5 {[%clk 0:00:36.5]} 53... Kxb3 {[%clk
0:01:02.5]} 54. Kg5 {[%clk 0:00:37.2]} 54... Kc4 {[%clk 0:01:03.4]} 55. Kxh5
{[%clk 0:00:37.8]} 55... Kd5 {[%clk 0:01:04.3]} 56. Kg6 {[%clk 0:00:38.4]} 56...
Ke6 {[%clk 0:01:05.2]} 57. h5 {[%clk 0:00:38.8]} 57... Ke7 {[%clk 0:01:05]} 58.
Kg7 {[%clk 0:00:39.5]} 58... Ke6 {[%clk 0:01:05.1]} 59. h6 {[%clk 0:00:40.2]}
59... Kf5 {[%clk 0:01:06]} 60. h7 {[%clk 0:00:40.8]} 60... Kg4 {[%clk
0:01:06.9]} 61. h8=Q {[%clk 0:00:41.4]} 61... Kf3 {[%clk 0:01:07.8]} 62. Qh4
{[%clk 0:00:40.9]} 62... Ke3 {[%clk 0:01:08.7]} 63. Qf4+ {[%clk 0:00:40.5]}
63... Kd3 {[%clk 0:01:09.5]} 64. g4 {[%clk 0:00:40.9]} 64... Kc3 {[%clk
0:01:10.3]} 65. g5 {[%clk 0:00:41.6]} 65... Kd3 {[%clk 0:01:10.8]} 66. g6 {[%clk
0:00:42]} 66... Kc3 {[%clk 0:01:11.7]} 67. Kf7 {[%clk 0:00:42.7]} 67... Kd3
{[%clk 0:01:12.6]} 68. g7 {[%clk 0:00:43.4]} 68... Kc3 {[%clk 0:01:13.5]} 69.
g8=Q {[%clk 0:00:43.8]} 69... Kd3 {[%clk 0:01:14.4]} 70. Qgg3+ {[%clk
0:00:44.5]} 70... Ke2 {[%clk 0:01:14.3]} 71. Qff2+ {[%clk 0:00:45.4]} 71... Kd1
{[%clk 0:01:15.1]} 72. Qgg1# {[%clk 0:00:46.3]} 1-0